fUST/lending_fUST_20250709
["ID","MTS","AMOUNT","RATE_DAILY","PERIOD"]
[370525992,1752054666591,-781.249101,0.00023561,7]
[370525993,1752054666600,-258.533965,0.00023626,4]
[370525994,1752054666610,-968.60602263,0.00023659,9]
[370525995,1752054666620,-2929.97867869,0.00023676,2]
[370525996,1752054666629,-159.547108,0.00023808,2]
[370525997,1752054666638,-177.8250511,0.00023808,2]
[370525998,1752054666647,-306.0,0.00023808,2]
[370525999,1752054666657,-159.547108,0.00023808,2]
[370526000,1752054666666,-159.547108,0.00023808,2]
[370526001,1752054666676,-151.0,0.00023831,6]
[370526002,1752054666686,-968.60602263,0.00023831,10]
[370526003,1752054666695,-477.45,0.00023835,2]
[370526004,1752054666704,-460.0,0.00023835,2]
[370526005,1752054666714,-499.44,0.00023835,2]
[370526006,1752054666723,-559.17,0.00023835,2]
[370526007,1752054666733,-460.0,0.00023835,2]
[370526008,1752054666742,-460.0,0.00023835,2]
[370526009,1752054666751,-558.91,0.00023835,2]
[370526010,1752054666761,-5401.9,0.00023835,2]
[370526011,1752054666771,-511.2,0.00023835,2]
[370526012,1752054666781,-2162.08,0.00023835,2]
[370526013,1752054666790,-1959.38,0.00023835,2]
[370526014,1752054666799,-794.18,0.00023835,2]
[370526015,1752054666809,-490.15,0.00023835,2]
[370526016,1752054666819,-460.0,0.00023835,2]
[370526017,1752054666828,-460.0,0.00023835,2]
[370526018,1752054666837,-4227.67,0.00023835,2]
[370526019,1752054666846,-1741.57,0.00023835,2]
[370526020,1752054666855,-2459.94,0.00023835,2]
[370526021,1752054666864,-226.61,0.00023835,2]
[370526022,1752054666874,-2141.49,0.00023835,2]
[370526023,1752054666883,-3051.4,0.00023835,2]
[370526024,1752054666893,-501.6,0.00023835,2]
[370526025,1752054666902,-460.0,0.00023835,2]
[370526026,1752054666911,-959.14,0.00023835,2]
[370526027,1752054666920,-535.33,0.00023835,2]
[370526028,1752054666929,-460.0,0.00023835,2]
[370526029,1752054666939,-468.56,0.00023835,2]
[370526030,1752054666948,-906.28,0.00023835,2]
[370526031,1752054666957,-1849.41,0.00023835,2]
[370526032,1752054666967,-727.53,0.00023835,2]
[370526033,1752054666976,-460.0,0.00023835,2]
[370526034,1752054666985,-2492.72,0.00023835,2]
[370526035,1752054666995,-799.56,0.00023835,2]
[370526036,1752054667004,-561.98,0.00023835,2]
[370526037,1752054667015,-549.27,0.00023835,2]
[370526038,1752054667027,-1633.23,0.00023835,2]
[370526039,1752054667036,-1800.5,0.00023835,2]
[370526040,1752054667046,-887.53,0.00023835,2]
[370526041,1752054667055,-460.0,0.00023835,2]
[370526042,1752054667065,-569.08,0.00023835,2]
[370526043,1752054667074,-1310.81,0.00023835,2]
[370526044,1752054667084,-471.15,0.00023835,2]
[370526045,1752054667093,-3592.67,0.00023835,2]
[370526046,1752054667102,-707.19,0.00023835,2]
[370526047,1752054667116,-460.0,0.00023835,2]
[370526048,1752054667126,-464.68,0.00023835,2]
[370526049,1752054667136,-460.0,0.00023835,2]
[370526050,1752054667145,-1087.31,0.00023835,2]
[370526051,1752054667156,-1189.48,0.00023835,2]
[370526052,1752054667165,-620.81356711,0.000239,2]
[370526053,1752054667175,-2929.97867869,0.00023914,2]
[370526054,1752054667184,-154.696892,0.00023931,5]
[370526055,1752054667195,-837.99933892,0.00024,7]
[370526056,1752054667204,-230.53906051,0.00024,7]
[370526057,1752054667214,-600.0,0.00024,2]
[370526058,1752054667223,-968.60602263,0.00024003,10]
[370526059,1752054667233,-523.19876497,0.00024056,2]
[370526060,1752054667243,-208.96118172,0.00024109,2]
[370526061,1752054667253,-477.45,0.00024109,2]
[370526062,1752054667263,-460.0,0.00024109,2]
[370526063,1752054667272,-499.44,0.00024109,2]
[370526064,1752054667282,-559.17,0.00024109,2]
[370526065,1752054667292,-328.44699189,0.00024109,2]
[370526066,1752054667301,-460.0,0.00024109,2]
[370526067,1752054667311,-558.91,0.00024109,2]
[370526068,1752054667321,-5401.9,0.00024109,2]
[370526069,1752054667330,-511.2,0.00024109,2]
[370526070,1752054667340,-2162.08,0.00024109,2]
[370526071,1752054667350,-1959.38,0.00024109,2]
[370526072,1752054667360,-794.18,0.00024109,2]
[370526073,1752054667370,-490.15,0.00024109,2]
[370526074,1752054667380,-460.0,0.00024109,2]
[370526075,1752054667389,-230.73062223,0.00024109,2]
[370526076,1752054667399,-4227.67,0.00024109,2]
[370526077,1752054667410,-1741.57,0.00024109,2]
[370526078,1752054667420,-2459.94,0.00024109,2]
[370526079,1752054667429,-2141.49,0.00024109,2]
[370526080,1752054667439,-3051.4,0.00024109,2]
[370526081,1752054667448,-460.0,0.00024109,2]
[370526082,1752054667458,-959.14,0.00024109,2]
[370526083,1752054667468,-535.33,0.00024109,2]
[370526084,1752054667477,-460.0,0.00024109,2]
[370526085,1752054667486,-468.56,0.00024109,2]
[370526086,1752054667496,-906.28,0.00024109,2]
[370526087,1752054667505,-1849.41,0.00024109,2]
[370526088,1752054667514,-583.15,0.00024109,2]
[370526089,1752054667524,-727.53,0.00024109,2]
[370526090,1752054667534,-2492.72,0.00024109,2]
[370526091,1752054667543,-799.56,0.00024109,2]
[370526092,1752054667553,-561.98,0.00024109,2]
[370526093,1752054667564,-549.27,0.00024109,2]
[370526094,1752054667576,-1633.23,0.00024109,2]
[370526095,1752054667586,-1800.5,0.00024109,2]
[370526096,1752054667595,-887.53,0.00024109,2]
[370526097,1752054667605,-248.51,0.00024109,2]
[370526098,1752054667615,-569.08,0.00024109,2]
[370526099,1752054667625,-1310.81,0.00024109,2]
[370526100,1752054667634,-471.15,0.00024109,2]
[370526101,1752054667644,-3592.67,0.00024109,2]
[370526102,1752054667653,-707.19,0.00024109,2]
[370526103,1752054667663,-460.0,0.00024109,2]
[370526104,1752054667674,-464.68,0.00024109,2]
[370526105,1752054667683,-460.0,0.00024109,2]
[370526106,1752054667692,-1087.31,0.00024109,2]
[370526107,1752054667702,-1189.48,0.00024109,2]
[370526108,1752054667713,-800.15,0.00024131,3]
[370526109,1752054667723,-2929.97867869,0.00024152,2]
[370526110,1752054667733,-968.60602263,0.00024176,10]
[370526111,1752054667742,-206.0,0.0002419,2]
[370526112,1752054667751,-151.0,0.0002422,6]
[370526113,1752054667761,-154.696892,0.00024224,2]
[370526114,1752054667771,-800.15,0.00024231,3]
[370526115,1752054667780,-600.0,0.0002425,2]
[370526116,1752054667790,-5288.0,0.00024255,2]
[370526117,1752054667801,-6484.54,0.000243,7]
[370526118,1752054667811,-800.15,0.00024331,7]
[370526119,1752054667821,-968.60602263,0.00024348,11]
[370526120,1752054667831,-523.19876497,0.00024356,2]
[370526121,1752054667840,-151.0,0.00024383,7]
[370526122,1752054667850,-151.0,0.00024383,7]
[370526123,1752054667860,-151.0,0.00024383,7]
[370526124,1752054667869,-477.45,0.00024383,2]
[370526125,1752054667878,-454.88,0.00024383,2]
[370526126,1752054667887,-499.44,0.00024383,2]
[370526127,1752054667897,-559.17,0.00024383,2]
[370526128,1752054667906,-151.0,0.00024383,7]
[370526129,1752054667915,-151.0,0.00024383,7]
[370526130,1752054667924,-460.0,0.00024383,2]
[370526131,1752054667934,-151.0,0.00024383,7]
[370526132,1752054667943,-151.0,0.00024383,7]
[370526133,1752054667953,-558.91,0.00024383,2]
[370526134,1752054667962,-5401.9,0.00024383,2]
[370526135,1752054667972,-511.2,0.00024383,2]
[370526136,1752054667981,-2162.08,0.00024383,2]
[370526137,1752054667992,-1959.38,0.00024383,2]
[370526138,1752054668002,-794.18,0.00024383,2]
[370526139,1752054668012,-490.15,0.00024383,2]
[370526140,1752054668026,-460.0,0.00024383,2]
[370526141,1752054668035,-4227.67,0.00024383,2]
[370526142,1752054668045,-1741.57,0.00024383,2]
[370526143,1752054668055,-2459.94,0.00024383,2]
[370526144,1752054668064,-2141.49,0.00024383,2]
[370526145,1752054668074,-2983.70306849,0.00024383,2]
[370526146,1752054668235,-460.0,0.00019726,2]
[370526147,1752054668245,-300.0,0.0002062,2]
[370526148,1752054668255,-67.69693151,0.00024383,2]
[370526149,1752054668264,-460.0,0.00024383,2]
[370526150,1752054668273,-959.14,0.00024383,2]
[370526151,1752054668283,-535.33,0.00024383,2]
[370526152,1752054668293,-460.0,0.00024383,2]
[370526153,1752054668302,-468.56,0.00024383,2]
[370526154,1752054668312,-906.28,0.00024383,2]
[370526155,1752054668322,-431.02651566,0.00024383,2]
[370526156,1752054668334,-1418.38348434,0.00024383,2]
[370526157,1752054668343,-727.53,0.00024383,2]
[370526158,1752054668351,-2492.72,0.00024383,2]
[370526159,1752054668361,-799.56,0.00024383,2]
[370526160,1752054668370,-561.98,0.00024383,2]
[370526161,1752054668380,-549.27,0.00024383,2]
[370526162,1752054668389,-1633.23,0.00024383,2]
[370526163,1752054668399,-1800.5,0.00024383,2]
[370526164,1752054668409,-887.53,0.00024383,2]
[370526165,1752054668419,-569.08,0.00024383,2]
[370526166,1752054668428,-1310.81,0.00024383,2]
[370526167,1752054668438,-471.15,0.00024383,2]
[370526168,1752054668447,-3592.67,0.00024383,2]
[370526169,1752054668456,-707.19,0.00024383,2]
[370526170,1752054668465,-460.0,0.00024383,2]
[370526171,1752054668474,-464.68,0.00024383,2]
[370526172,1752054668484,-460.0,0.00024383,2]
[370526173,1752054668600,-1087.31,0.00024383,2]
[370526174,1752054668609,-1189.48,0.00024383,2]
[370526175,1752054668619,-168.0,0.00024387,2]
[370526176,1752054668628,-1033.9963892,0.0002439,2]
[370526177,1752054668637,-2929.97867869,0.00024391,2]
[370526178,1752054668646,-3298.17761185,0.000244,7]
[370526179,1752054668736,-460.0,0.00019178,2]
[370526180,1752054668745,-460.0,0.00019452,2]
[370526181,1752054668755,-460.0,0.0002,2]
[370526182,1752054668764,-460.0,0.00020273,2]
[370526183,1752054668774,-460.0,0.00020547,2]
[370526184,1752054668782,-300.0,0.0002062,2]
[370526185,1752054668792,-300.0,0.0002062,2]
[370526186,1752054668801,-460.0,0.00020821,2]
[370526187,1752054668811,-270.73,0.00021095,2]
[370526188,1752054668821,-781.249101,0.00021917,2]
[370526189,1752054668841,-151.0,0.00021918,2]
[370526190,1752054668851,-151.0,0.00022191,7]
[370526191,1752054668860,-781.249101,0.00022521,7]
[370526192,1752054668870,-187.60510986,0.00023561,7]
[370526193,1752054668882,-593.64399114,0.00023561,7]
[370526194,1752054668892,-1185.56693926,0.000244,7]
[370526195,1752054668904,-49519.34544889,0.000244,7]
[370526196,1752054668914,-151.0,0.000244,7]
[370526197,1752054668923,-151.0,0.000244,7]
[370526198,1752054668933,-151.0,0.000244,7]
[370526199,1752054668943,-151.0,0.000244,7]
[370526200,1752054668952,-151.0,0.000244,7]
[370526201,1752054668961,-2396.05,0.000244,7]
[370526202,1752054668971,-168.0,0.00024408,2]
[370526203,1752054668980,-800.15,0.00024431,3]
[370526204,1752054668989,-523.19876497,0.00024456,2]
[370526205,1752054668998,-1177.0,0.000245,30]
[370526206,1752054669007,-154.696892,0.000245,4]
[370526207,1752054669018,-600.0,0.000245,2]
[370526208,1752054669028,-968.60602263,0.00024521,11]
[370526209,1752054669038,-168.0,0.00024525,2]
[370526210,1752054669048,-800.15,0.00024531,7]
[370526211,1752054669058,-151.0,0.00024531,7]
[370526212,1752054669067,-151.0,0.00024531,7]
[370526213,1752054669077,-151.0,0.00024531,7]
[370526214,1752054669086,-151.0,0.00024531,7]
[370526215,1752054669095,-523.19876497,0.00024556,2]
[370526216,1752054669105,-206.0,0.0002456,2]
[370526217,1752054669114,-168.0,0.00024581,2]
[370526218,1752054669124,-34797.41356547,0.000246,2]
[370526219,1752054669136,-16701.8693689,0.000246,2]
[370526220,1752054669425,-460.0,0.00019178,2]
[370526221,1752054669435,-460.0,0.00019178,2]
[370526222,1752054669444,-99.54100838,0.00019178,2]
[370526223,1752054669465,-360.45899162,0.00019178,2]
[370526224,1752054669475,-324.73873858,0.00019452,2]
[370526225,1752054669484,-300.0,0.0002062,2]
[370526226,1752054669493,-300.0,0.0002062,2]
[370526227,1752054669502,-300.0,0.0002062,2]
[370526228,1752054669511,-246.00119913,0.0002062,2]
[370526229,1752054669521,-151.0,0.00021643,2]
[370526230,1752054669530,-162.565536,0.00021643,2]
[370526231,1752054669539,-151.0,0.00022191,7]
[370526232,1752054669549,-970.92632249,0.00022668,2]
[370526233,1752054669560,-151.0,0.000234,7]
[370526234,1752054669569,-43932.54548552,0.000246,2]
[370526235,1752054669581,-375.481998,0.000246,2]
[370526236,1752054669592,-482.0238472,0.000246,2]
[370526237,1752054669603,-355.33534456,0.000246,2]
[370526238,1752054669615,-9996.59039035,0.000246,2]
[370526239,1752054669623,-151.0,0.000246,7]
[370526240,1752054669633,-151.0,0.000246,7]
[370526241,1752054669646,-151.0,0.000246,7]
[370526242,1752054669655,-158.643639,0.000246,7]
[370526243,1752054669665,-151.0,0.000246,7]
[370526244,1752054669675,-151.0,0.000246,7]
[370526245,1752054669684,-151.0,0.000246,7]
[370526246,1752054669694,-151.0,0.000246,7]
[370526247,1752054669702,-151.0,0.000246,7]
[370526248,1752054669711,-151.0,0.000246,7]
[370526249,1752054669720,-151.0,0.000246,7]
[370526250,1752054669730,-151.0,0.000246,7]
[370526251,1752054669739,-151.0,0.000246,7]
[370526252,1752054669749,-151.0,0.000246,2]
[370526253,1752054669758,-151.0,0.000246,2]
[370526254,1752054669768,-245.270172,0.000246,7]
[370526255,1752054669777,-366.031599,0.000246,7]
[370526256,1752054669787,-366.031599,0.000246,7]
[370526257,1752054669796,-156.096234,0.000246,7]
[370526258,1752054669807,-156.096234,0.000246,7]
[370526259,1752054669816,-151.0,0.000246,7]
[370526260,1752054669825,-781.249101,0.000246,7]
[370526261,1752054669834,-781.249101,0.000246,7]
[370526262,1752054669843,-275.947568,0.000246,7]
[370526263,1752054669853,-151.0,0.0002461,7]
[370526264,1752054669862,-2929.97867869,0.00024629,2]
[370526265,1752054669870,-800.15,0.00024631,7]
[370526266,1752054669879,-9758.58431343,0.0002465,2]
[370526267,1752054669891,-548.61948052,0.0002465,2]
[370526268,1752054669904,-207.0,0.0002465,2]
[370526269,1752054669914,-523.19876497,0.00024656,2]
[370526270,1752054669923,-224.273757,0.00024657,7]
[370526271,1752054669932,-477.45,0.00024657,2]
[370526272,1752054669943,-499.44,0.00024657,2]
[370526273,1752054669952,-559.17,0.00024657,2]
[370526274,1752054669961,-166.1,0.00024657,7]
[370526275,1752054669970,-460.0,0.00024657,2]
[370526276,1752054669980,-152.761776,0.00024657,7]
[370526277,1752054669989,-151.0,0.00024657,7]
[370526278,1752054669998,-151.0,0.00024657,7]
[370526279,1752054670007,-558.91,0.00024657,2]
[370526280,1752054670018,-151.0,0.00024657,7]
[370526281,1752054670029,-151.0,0.00024657,7]
[370526282,1752054670039,-180.70979603,0.00024657,2]
[370526283,1752054670050,-1318.399988,0.00024657,2]
[370526284,1752054670067,-460.0,0.00019178,2]
[370526285,1752054670077,-1550.50207394,0.00024657,2]
[370526286,1752054670088,-2352.28814203,0.00024657,2]
[370526287,1752054670099,-511.2,0.00024657,2]
[370526288,1752054670109,-2162.08,0.00024657,2]
[370526289,1752054670118,-1959.38,0.00024657,2]
[370526290,1752054670128,-490.15,0.00024657,2]
[370526291,1752054670138,-300.2520337,0.00024657,2]
[370526292,1752054670147,-4227.67,0.00024657,2]
[370526293,1752054670156,-1741.57,0.00024657,2]
[370526294,1752054670165,-2459.94,0.00024657,2]
[370526295,1752054670175,-2141.49,0.00024657,2]
[370526296,1752054670185,-3051.4,0.00024657,2]
[370526297,1752054670194,-193.39,0.00024657,2]
[370526298,1752054670203,-959.14,0.00024657,2]
[370526299,1752054670213,-535.33,0.00024657,2]
[370526300,1752054670223,-460.0,0.00024657,2]
[370526301,1752054670232,-468.56,0.00024657,2]
[370526302,1752054670241,-906.28,0.00024657,2]
[370526303,1752054670250,-1849.41,0.00024657,2]
[370526304,1752054670259,-727.53,0.00024657,2]
[370526305,1752054670268,-2492.72,0.00024657,2]
[370526306,1752054670278,-799.56,0.00024657,2]
[370526307,1752054670287,-561.98,0.00024657,2]
[370526308,1752054670296,-549.27,0.00024657,2]
[370526309,1752054670306,-1633.23,0.00024657,2]
[370526310,1752054670315,-1800.5,0.00024657,2]
[370526311,1752054670324,-887.53,0.00024657,2]
[370526312,1752054670334,-569.08,0.00024657,2]
[370526313,1752054670343,-1310.81,0.00024657,2]
[370526314,1752054670352,-471.15,0.00024657,2]
[370526315,1752054670362,-3592.67,0.00024657,2]
[370526316,1752054670371,-707.19,0.00024657,2]
[370526317,1752054670380,-460.0,0.00024657,2]
[370526318,1752054670389,-464.68,0.00024657,2]
[370526319,1752054670398,-460.0,0.00024657,2]
[370526320,1752054670407,-1087.31,0.00024657,2]
[370526321,1752054670416,-1189.48,0.00024657,2]
[370526322,1752054670425,-380.0,0.00024658,2]
[370526323,1752054670435,-576.2331812,0.00024658,2]
[370526324,1752054670444,-306.0,0.00024658,2]
[370526325,1752054670453,-159.547108,0.00024658,2]
[370526326,1752054670462,-177.8250511,0.00024658,2]
[370526327,1752054670471,-576.2331812,0.00024658,2]
[370526328,1752054670480,-340.2960625,0.00024658,2]
[370526329,1752054670489,-159.547108,0.00024658,2]
[370526330,1752054670498,-177.8250511,0.00024658,2]
[370526331,1752054670507,-177.8250511,0.00024658,2]
[370526332,1752054670517,-857.1242403,0.00024658,2]
[370526333,1752054670526,-159.547108,0.00024658,2]
[370526334,1752054670535,-177.5175056,0.00024658,2]
[370526335,1752054670544,-500.0,0.00024658,2]
[370526336,1752054670553,-500.0,0.00024685,2]
[370526337,1752054670563,-968.60602263,0.00024693,11]
[370526338,1752054670573,-200.0,0.000247,12]
[370526339,1752054670676,-500.0,0.00024713,2]
[370526340,1752054670686,-231.28369723,0.00024727,2]
[370526341,1752054670695,-800.15,0.00024731,7]
[370526342,1752054670704,-168.0,0.00024735,2]
[370526343,1752054670713,-500.0,0.0002474,2]
[370526344,1752054670723,-952.60649026,0.0002475,2]
[370526345,1752054670732,-523.19876497,0.00024756,2]
[370526346,1752054670742,-500.0,0.00024768,2]
[370526347,1752054670752,-500.0,0.00024795,2]
[370526348,1752054670762,-160.0,0.000248,3]
[370526349,1752054670771,-151.0,0.000248,7]
[370526350,1752054670780,-151.0,0.000248,7]
[370526351,1752054670789,-151.0,0.000248,7]
[370526352,1752054670798,-151.0,0.000248,7]
[370526353,1752054670807,-151.0,0.000248,7]
[370526354,1752054670815,-151.0,0.000248,7]
[370526355,1752054670825,-151.0,0.000248,7]
[370526356,1752054670833,-151.0,0.000248,7]
[370526357,1752054670843,-151.0,0.000248,7]
[370526358,1752054670852,-151.0,0.000248,7]
[370526359,1752054670861,-154.696892,0.000248,3]
[370526360,1752054670871,-54511.96412108,0.000248,2]
[370526361,1752054670887,-393.55482928,0.00019178,2]
[370526362,1752054671001,-253.84984333,0.00019177,2]
[370526363,1752054671010,-100.81748035,0.00019177,2]
[370526364,1752054671024,-141.80826807,0.00019177,2]
[370526365,1752054671034,-66.44517072,0.00019178,2]
[370526366,1752054671043,-460.0,0.00019178,2]
[370526367,1752054671052,-460.0,0.00019178,2]
[370526368,1752054671060,-390.03623763,0.00019178,2]
[370527202,1752054875716,201.808071,0.00013699,2]
[370527210,1752055396188,154.12,0.000183,2]
[370527231,1752055832548,-413.8757114,0.000189,2]
[370527233,1752055832557,-500.0,0.00019073,2]
[370527234,1752055832567,-364.09737096,0.00019077,2]
[370527236,1752055832576,-1467.43327076,0.00019078,2]
[370527238,1752055832585,-300.0,0.00019172,2]
[370527240,1752055832594,-401.41884078,0.00019173,2]
[370527243,1752055832607,-98.58115922,0.00019173,2]
[370527245,1752055832616,-500.0,0.00019173,2]
[370527247,1752055832626,-281.82186552,0.00019173,2]
[370527249,1752055832635,-500.0,0.00019173,2]
[370527251,1752055832644,-198.54547979,0.00019173,2]
[370527253,1752055832654,-500.0,0.00019173,2]
[370527255,1752055832663,-271.05149547,0.00019173,2]
[370527261,1752055832707,-228.94850453,0.00019173,2]
[370527262,1752055832716,-92.11279591,0.00019173,2]
[370527313,1752055838396,-3809.32322849,0.00019173,2]
[370527318,1752055838452,-40045.0196604,0.00019173,2]
[370527319,1752055838461,-500.0,0.00019177,2]
[370527320,1752055838471,-500.0,0.00019177,2]
[370527321,1752055838480,-500.0,0.00019177,2]
[370527322,1752055838489,-332.77620023,0.00019177,2]
[370527323,1752055838499,-405.85748006,0.00019177,2]
[370527324,1752055838509,-460.0,0.00019178,2]
[370527325,1752055838519,-460.0,0.00019178,2]
[370527326,1752055838528,-460.0,0.00019178,2]
[370527327,1752055838537,-460.0,0.00019178,2]
[370527328,1752055838546,-234.32026622,0.00019178,2]
[370527329,1752055838556,-460.0,0.00019178,2]
[370527330,1752055838564,-460.0,0.00019178,2]
[370527331,1752055838574,-460.0,0.00019178,2]
[370527332,1752055838583,-442.04519372,0.00019178,2]
[370527333,1752055838593,-461.63382994,0.00019178,2]
[370527334,1752055838602,-460.0,0.00019178,2]
[370527335,1752055838611,-460.0,0.00019178,2]
[370527336,1752055838621,-460.0,0.00019178,2]
[370527337,1752055838630,-460.0,0.00019178,2]
[370527338,1752055838640,-331.19088156,0.00019178,2]
[370527339,1752055838649,-460.0,0.00019178,2]
[370527340,1752055838658,-460.0,0.00019178,2]
[370527341,1752055838667,-460.0,0.00019178,2]
[370527342,1752055838676,-460.0,0.00019178,2]
[370527343,1752055838686,-460.0,0.00019178,2]
[370527344,1752055838695,-460.0,0.00019178,2]
[370527345,1752055838703,-460.0,0.00019178,2]
[370527346,1752055838712,-460.0,0.00019178,2]
[370527347,1752055838722,-460.0,0.00019178,2]
[370527348,1752055838731,-460.0,0.00019178,2]
[370527349,1752055838740,-460.0,0.00019178,2]
[370527350,1752055838749,-460.0,0.00019178,2]
[370527351,1752055838758,-460.0,0.00019178,2]
[370527352,1752055838767,-460.0,0.00019178,2]
[370527353,1752055838776,-460.0,0.00019178,2]
[370527354,1752055838784,-460.0,0.00019178,2]
[370527355,1752055838793,-460.0,0.00019178,2]
[370527356,1752055838802,-460.0,0.00019178,2]
[370527357,1752055838811,-460.0,0.00019178,2]
[370527358,1752055838821,-460.0,0.00019178,2]
[370527359,1752055838830,-460.0,0.00019178,2]
[370527360,1752055838839,-460.0,0.00019178,2]
[370527361,1752055838848,-500.0,0.00019178,2]
[370527362,1752055838857,-460.0,0.00019178,2]
[370527363,1752055838867,-460.0,0.00019178,2]
[370527364,1752055838877,-460.0,0.00019178,2]
[370527365,1752055838886,-460.0,0.00019178,2]
[370527366,1752055838897,-460.0,0.00019178,2]
[370527367,1752055838907,-460.0,0.00019178,2]
[370527368,1752055838916,-460.0,0.00019178,2]
[370527369,1752055838925,-460.0,0.00019178,2]
[370527370,1752055838935,-460.0,0.00019178,2]
[370527371,1752055838944,-460.59501018,0.00019178,2]
[370527372,1752055838953,-460.0,0.00019178,2]
[370527373,1752055838962,-460.0,0.00019178,2]
[370527374,1752055838972,-460.0,0.00019178,2]
[370527375,1752055838981,-494.20814558,0.00019178,2]
[370527376,1752055838991,-460.0,0.00019178,2]
[370527377,1752055839002,-254.14359342,0.00019178,2]
[370527378,1752055839011,-460.0,0.00019178,2]
[370527379,1752055839021,-460.0,0.00019178,2]
[370527380,1752055839030,-531.13483638,0.00019178,2]
[370527381,1752055839040,-460.0,0.00019178,2]
[370527382,1752055839049,-460.0,0.00019178,2]
[370527383,1752055839058,-460.0,0.00019178,2]
[370527384,1752055839068,-460.0,0.00019178,2]
[370527385,1752055839077,-410.95440453,0.00019178,2]
[370527386,1752055839087,-460.0,0.00019178,2]
[370527387,1752055839102,-328.74803714,0.00019178,2]
[370527388,1752055839111,-460.0,0.00019178,2]
[370527389,1752055839121,-460.0,0.00019178,2]
[370527390,1752055839130,-460.0,0.00019178,2]
[370527391,1752055839139,-460.0,0.00019178,2]
[370527392,1752055839148,-460.0,0.00019178,2]
[370527393,1752055839158,-460.0,0.00019178,2]
[370527394,1752055839167,-460.0,0.00019178,2]
[370527395,1752055839177,-460.0,0.00019178,2]
[370527396,1752055839186,-460.0,0.00019178,2]
[370527397,1752055839195,-460.0,0.00019178,2]
[370527398,1752055839204,-460.0,0.00019178,2]
[370527399,1752055839214,-460.0,0.00019178,2]
[370527400,1752055839223,-460.0,0.00019178,2]
[370527401,1752055839232,-460.0,0.00019178,2]
[370527402,1752055839242,-460.0,0.00019178,2]
[370527403,1752055839251,-460.0,0.00019178,2]
[370527404,1752055839261,-460.0,0.00019178,2]
[370527405,1752055839270,-460.0,0.00019178,2]
[370527406,1752055839279,-460.0,0.00019178,2]
[370527407,1752055839288,-242.57933646,0.00019178,2]
[370527408,1752055839297,-394.53645477,0.00019178,2]
[370527409,1752055839306,-460.0,0.00019178,2]
[370527410,1752055839316,-460.0,0.00019178,2]
[370527411,1752055839325,-460.0,0.00019178,2]
[370527412,1752055839334,-460.0,0.00019178,2]
[370527413,1752055839344,-460.0,0.00019178,2]
[370527414,1752055839353,-460.0,0.00019178,2]
[370527415,1752055839363,-460.0,0.00019178,2]
[370527416,1752055839372,-500.0,0.00019178,2]
[370527417,1752055839381,-500.0,0.00019178,2]
[370527418,1752055839391,-460.0,0.00019178,2]
[370527419,1752055839401,-500.0,0.00019178,2]
[370527420,1752055839410,-500.0,0.00019178,2]
[370527421,1752055839419,-500.0,0.00019178,2]
[370527422,1752055839428,-500.0,0.00019178,2]